[Event "3. kolo JP družstev 2019/2020"]
[Site "Jesenik, Czech Republic"]
[Date "2019.11.09"]
[Round "1.1"]
[White "Valicek, Martin JES_D"]
[Black "Tschulik, Daniel JES_F"]
[Result "1-0"]
[TimeControl "3600+10"]
[WhiteElo "1390"]
[BlackElo "1000"]

1. e4 {[%clk 01:00:15]} {[%emt 00:00:04]} e5 {[%clk 01:00:15]} {[%emt
00:00:06]} 2. Nc3 {[%clk 01:00:17]} {[%emt 00:00:08]} Bc5 {[%clk 01:00:11]}
{[%emt 00:00:14]} 3. g3 {[%clk 01:00:00]} {[%emt 00:00:27]} d6 {[%clk
01:00:06]} {[%emt 00:00:15]} 4. Bg2 {[%clk 00:59:52]} {[%emt 00:00:18]} Nf6
{[%clk 00:59:55]} {[%emt 00:00:21]} 5. Nge2 {[%clk 00:59:36]} {[%emt 00:00:26]}
O-O {[%clk 00:59:47]} {[%emt 00:00:19]} 6. O-O {[%clk 00:59:27]} {[%emt
00:00:19]} h6 {[%clk 00:59:23]} {[%emt 00:00:33]} 7. d4 {[%clk 00:58:47]}
{[%emt 00:00:50]} Bxd4 {[%clk 00:58:34]} {[%emt 00:00:58]} 8. Nxd4 {[%clk
00:58:43]} {[%emt 00:00:16]} exd4 {[%clk 00:58:36]} {[%emt 00:00:08]} 9. Qxd4
{[%clk 00:57:44]} {[%emt 00:01:09]} Nc6 {[%clk 00:58:35]} {[%emt 00:00:10]} 10.
Qd2 {[%clk 00:56:44]} {[%emt 00:01:08]} Bd7 {[%clk 00:55:34]} {[%emt 00:03:13]}
11. b3 {[%clk 00:55:09]} {[%emt 00:01:45]} Qe7 {[%clk 00:54:53]} {[%emt
00:00:51]} 12. Bb2 {[%clk 00:54:06]} {[%emt 00:01:13]} Qe6 {[%clk 00:54:02]}
{[%emt 00:00:57]} 13. Rae1 {[%clk 00:53:20]} {[%emt 00:00:59]} Rae8 {[%clk
00:53:45]} {[%emt 00:00:28]} 14. Nd5 {[%clk 00:53:01]} {[%emt 00:00:29]} Nxe4
{[%clk 00:51:50]} {[%emt 00:02:05]} 15. Bxe4 {[%clk 00:51:49]} {[%emt
00:01:22]} Qg4 {[%clk 00:50:38]} {[%emt 00:01:22]} 16. f3 {[%clk 00:50:19]}
{[%emt 00:01:40]} Qh5 {[%clk 00:49:26]} {[%emt 00:01:21]} 17. Qc3 {[%clk
00:48:14]} {[%emt 00:02:16]} Qg5 {[%clk 00:48:09]} {[%emt 00:01:27]} 18. Kg2
{[%clk 00:45:59]} {[%emt 00:02:24]} Ne5 {[%clk 00:46:43]} {[%emt 00:01:37]} 19.
h4 {[%clk 00:43:39]} {[%emt 00:02:31]} Qh5 {[%clk 00:46:13]} {[%emt 00:00:39]}
20. Nf4 {[%clk 00:43:26]} {[%emt 00:00:23]} Qxf3+ {[%clk 00:40:46]} {[%emt
00:05:36]} 21. Rxf3 {[%clk 00:43:20]} {[%emt 00:00:17]} Bg4 {[%clk 00:40:21]}
{[%emt 00:00:35]} 22. Rfe3 {[%clk 00:42:48]} {[%emt 00:00:41]} b5 {[%clk
00:39:31]} {[%emt 00:01:01]} 23. a3 {[%clk 00:42:19]} {[%emt 00:00:39]} Re7
{[%clk 00:39:04]} {[%emt 00:00:35]} 24. Bd5 {[%clk 00:41:49]} {[%emt 00:00:42]}
Kh8 {[%clk 00:37:56]} {[%emt 00:01:19]} 25. Rxe5 {[%clk 00:41:24]} {[%emt
00:00:35]} dxe5 {[%clk 00:37:39]} {[%emt 00:00:26]} 26. Rxe5 {[%clk 00:41:23]}
{[%emt 00:00:11]} Be6 {[%clk 00:37:14]} {[%emt 00:00:35]} 27. Rxe6 {[%clk
00:40:44]} {[%emt 00:00:49]} Rg8 {[%clk 00:37:13]} {[%emt 00:00:11]} 28. Rxe7
{[%clk 00:40:43]} {[%emt 00:00:11]} c6 {[%clk 00:36:51]} {[%emt 00:00:32]} 29.
Be4 {[%clk 00:40:35]} {[%emt 00:00:18]} b4 {[%clk 00:36:51]} {[%emt 00:00:10]}
30. Qxg7+ {[%clk 00:40:38]} {[%emt 00:00:07]} Rxg7 {[%clk 00:36:48]} {[%emt
00:00:13]} 31. Re8# {[%clk 00:40:26]} {[%emt 00:00:12]} 1-0

[Event "3. kolo JP družstev 2019/2020"]
[Site "Jesenik, Czech Republic"]
[Date "2019.11.09"]
[Round "1.2"]
[White "Vanicek, Daniel JES_F"]
[Black "Dockal, Karel ml. JES_D"]
[Result "0-1"]
[TimeControl "3600+10"]
[WhiteElo "1000"]
[BlackElo "1405"]

1. e4 {[%clk 01:00:15]} {[%emt 00:00:05]} e6 {[%clk 01:00:12]} {[%emt
00:00:07]} 2. d4 {[%clk 01:00:13]} {[%emt 00:00:12]} d5 {[%clk 01:00:19]}
{[%emt 00:00:05]} 3. e5 {[%clk 01:00:13]} {[%emt 00:00:09]} c5 {[%clk
01:00:25]} {[%emt 00:00:04]} 4. c3 {[%clk 00:59:58]} {[%emt 00:00:26]} Qa5
{[%clk 01:00:24]} {[%emt 00:00:08]} 5. Bd2 {[%clk 00:59:56]} {[%emt 00:00:14]}
Qb6 {[%clk 01:00:12]} {[%emt 00:00:20]} 6. Nf3 {[%clk 00:59:58]} {[%emt
00:00:10]} Qxb2 {[%clk 01:00:04]} {[%emt 00:00:17]} 7. Na3 {[%clk 00:59:45]}
{[%emt 00:00:24]} Qxa3 {[%clk 00:59:59]} {[%emt 00:00:15]} 8. Bd3 {[%clk
00:59:41]} {[%emt 00:00:14]} cxd4 {[%clk 00:59:48]} {[%emt 00:00:22]} 9. cxd4
{[%clk 00:59:19]} {[%emt 00:00:29]} Bb4 {[%clk 00:59:51]} {[%emt 00:00:08]} 10.
Bxb4 {[%clk 00:59:13]} {[%emt 00:00:16]} Qxb4+ {[%clk 00:59:49]} {[%emt
00:00:13]} 11. Nd2 {[%clk 00:59:16]} {[%emt 00:00:07]} Nc6 {[%emt 00:00:17]} 12.
O-O {[%clk 00:58:52]} {[%emt 00:00:24]} Nxd4 {[%clk 00:59:32]} {[%emt
00:00:31]} 13. Nb3 {[%clk 00:58:51]} {[%emt 00:00:11]} Nxb3 {[%clk 00:59:31]}
{[%emt 00:00:10]} 14. axb3 {[%clk 00:58:06]} {[%emt 00:00:54]} f6 {[%clk
00:59:10]} {[%emt 00:00:32]} 15. exf6 {[%clk 00:58:09]} {[%emt 00:00:06]} Nxf6
{[%clk 00:59:12]} {[%emt 00:00:09]} 16. Re1 {[%clk 00:58:07]} {[%emt 00:00:12]}
O-O {[%clk 00:59:04]} {[%emt 00:00:18]} 17. Ra4 {[%clk 00:58:03]} {[%emt
00:00:14]} Qc5 {[%clk 00:58:26]} {[%emt 00:00:44]} 18. Rh4 {[%clk 00:57:48]}
{[%emt 00:00:29]} Ne4 {[%clk 00:57:11]} {[%emt 00:01:22]} 19. Bxe4 {[%clk
00:56:43]} {[%emt 00:01:18]} Qxf2+ {[%clk 00:56:54]} {[%emt 00:00:27]} 20. Kh1
{[%clk 00:56:45]} {[%emt 00:00:08]} Qxh4 {[%clk 00:56:43]} {[%emt 00:00:21]} 21.
Bxh7+ {[%emt 00:00:09]} Qxh7 {[%emt 00:00:12]} 22. h3 {[%clk 00:56:01]} {[%emt
00:00:33]} Rf2 {[%clk 00:56:40]} {[%emt 00:00:13]} 23. Rf1 {[%clk 00:56:04]}
{[%emt 00:00:07]} Rxf1+ {[%clk 00:56:36]} {[%emt 00:00:14]} 24. Qxf1 {[%clk
00:56:02]} {[%emt 00:00:12]} Bd7 {[%clk 00:56:29]} {[%emt 00:00:15]} 25. b4
{[%clk 00:56:01]} {[%emt 00:00:13]} Rf8 {[%clk 00:56:32]} {[%emt 00:00:07]} 26.
Qg1 {[%clk 00:56:00]} {[%emt 00:00:12]} Qf5 {[%clk 00:56:14]} {[%emt 00:00:26]}
27. Kh2 {[%clk 00:55:50]} {[%emt 00:00:21]} Qf4+ {[%clk 00:56:13]} {[%emt
00:00:11]} 28. Kh1 {[%clk 00:55:42]} {[%emt 00:00:19]} Qf1 {[%clk 00:56:09]}
{[%emt 00:00:14]} 29. Qxf1 {[%emt 00:00:05]} Rxf1+ {[%emt 00:00:03]} 30. Kh2
{[%clk 00:55:24]} {[%emt 00:00:19]} d4 {[%clk 00:56:09]} {[%emt 00:00:10]} 31.
Kg3 {[%emt 00:00:04]} d3 {[%emt 00:00:02]} 32. h4 {[%clk 00:55:26]} {[%emt
00:00:01]} d2 {[%emt 00:00:03]} 33. h5 {[%emt 00:00:42]} d1=Q {[%clk 00:55:31]}
{[%emt 00:00:05]} 34. h6 {[%emt 00:00:25]} Qd3+ {[%emt 00:00:09]} 35. Kh2
{[%emt 00:00:03]} Qh7 {[%emt 00:00:12]} 36. g4 {[%clk 00:54:35]} {[%emt
00:00:11]} Qxh6+ {[%clk 00:55:37]} {[%emt 00:00:04]} 37. Kg2 {[%clk 00:54:16]}
{[%emt 00:00:29]} Rf8 {[%clk 00:55:42]} {[%emt 00:00:05]} 38. g5 {[%clk
00:54:10]} {[%emt 00:00:16]} Qxg5+ {[%clk 00:55:46]} {[%emt 00:00:05]} 39. Kh3
{[%emt 00:00:27]} Rf6 {[%emt 00:00:07]} 40. Kh2 {[%clk 00:52:44]} {[%emt
00:00:04]} Rh6# {[%clk 00:55:46]} 0-1

[Event "3. kolo JP družstev 2019/2020"]
[Site "Jesenik, Czech Republic"]
[Date "2019.11.09"]
[Round "1.3"]
[White "Dockal, Karel st. JES_D"]
[Black "Vanicek, Vojtech JES_F"]
[Result "1/2-1/2"]
[TimeControl "3600+10"]
[WhiteElo "1000"]
[BlackElo "1000"]

1. e4 {[%clk 01:00:01]} {[%emt 00:00:04]} e5 {[%clk 00:59:30]} {[%emt
00:01:05]} 2. Nc3 {[%clk 01:00:01]} {[%emt 00:00:10]} Nf6 {[%clk 00:58:49]}
{[%emt 00:00:51]} 3. Nf3 {[%clk 00:59:57]} {[%emt 00:00:14]} Nc6 {[%clk
00:57:26]} {[%emt 00:01:33]} 4. Bc4 {[%clk 00:59:51]} {[%emt 00:00:16]} Bc5
{[%clk 00:56:11]} {[%emt 00:01:25]} 5. O-O {[%clk 00:59:14]} {[%emt 00:00:47]}
O-O {[%clk 00:54:55]} {[%emt 00:01:21]} 6. d3 {[%clk 00:58:42]} {[%emt
00:00:47]} d6 {[%clk 00:53:00]} {[%emt 00:02:05]} 7. Bg5 {[%clk 00:58:26]}
{[%emt 00:00:25]} h6 {[%clk 00:50:38]} {[%emt 00:02:33]} 8. Bxf6 {[%clk
00:57:54]} {[%emt 00:00:42]} Qxf6 {[%clk 00:49:06]} {[%emt 00:01:42]} 9. Nd5
{[%clk 00:57:45]} {[%emt 00:00:19]} Qd8 {[%clk 00:47:08]} {[%emt 00:02:07]} 10.
c3 {[%clk 00:57:17]} {[%emt 00:00:39]} a6 {[%clk 00:45:22]} {[%emt 00:01:57]}
11. b4 {[%clk 00:54:30]} {[%emt 00:02:57]} Ba7 {[%clk 00:44:49]} {[%emt
00:00:42]} 12. a4 {[%clk 00:53:32]} {[%emt 00:01:09]} a5 {[%clk 00:43:05]}
{[%emt 00:01:35]} 13. b5 {[%clk 00:53:21]} {[%emt 00:00:39]} Ne7 {[%clk
00:42:15]} {[%emt 00:01:00]} 14. d4 {[%clk 00:52:44]} {[%emt 00:00:47]} exd4
{[%clk 00:41:56]} {[%emt 00:00:29]} 15. cxd4 {[%clk 00:52:10]} {[%emt
00:00:44]} Be6 {[%clk 00:41:47]} {[%emt 00:00:18]} 16. Nxe7+ {[%clk 00:50:26]}
{[%emt 00:01:55]} Qxe7 {[%clk 00:41:18]} {[%emt 00:00:38]} 17. d5 {[%clk
00:49:18]} {[%emt 00:01:17]} Bg4 {[%clk 00:40:00]} {[%emt 00:01:21]} 18. h3
{[%clk 00:49:25]} {[%emt 00:00:11]} Bxf3 {[%clk 00:37:06]} {[%emt 00:03:05]} 19.
Qxf3 {[%clk 00:49:14]} {[%emt 00:00:20]} Rac8 {[%clk 00:36:31]} {[%emt
00:00:44]} 20. Rac1 {[%clk 00:48:58]} {[%emt 00:00:27]} c6 {[%clk 00:35:47]}
{[%emt 00:00:54]} 21. dxc6 {[%clk 00:45:44]} {[%emt 00:03:24]} bxc6 {[%clk
00:35:31]} {[%emt 00:00:27]} 22. bxc6 {[%clk 00:44:12]} {[%emt 00:01:42]} Rxc6
{[%clk 00:30:15]} {[%emt 00:05:26]} 23. Bd5 {[%clk 00:44:01]} {[%emt 00:00:21]}
Rxc1 {[%clk 00:29:36]} {[%emt 00:00:48]} 24. Rxc1 {[%clk 00:44:07]} {[%emt
00:00:04]} Qe5 {[%clk 00:28:44]} {[%emt 00:01:02]} 25. Rc7 {[%clk 00:42:23]}
{[%emt 00:01:54]} Qa1+ {[%clk 00:27:50]} {[%emt 00:01:03]} 26. Kh2 {[%clk
00:42:28]} {[%emt 00:00:05]} Qe5+ {[%clk 00:26:56]} {[%emt 00:01:06]} 27. g3
{[%clk 00:41:19]} {[%emt 00:01:19]} Bb6 {[%clk 00:25:54]} {[%emt 00:01:12]} 28.
Rxf7 {[%clk 00:36:43]} {[%emt 00:04:46]} Rxf7 {[%clk 00:25:24]} {[%emt
00:00:40]} 29. Bxf7+ {[%clk 00:35:22]} {[%emt 00:01:30]} Kf8 {[%clk 00:25:08]}
{[%emt 00:00:27]} 30. Bg6+ {[%clk 00:34:56]} {[%emt 00:00:34]} Qf6 {[%clk
00:24:47]} {[%emt 00:00:33]} 31. Qxf6+ {[%clk 00:34:35]} {[%emt 00:00:31]} gxf6
{[%emt 00:00:09]} 32. f4 {[%emt 00:00:22]} Kg7 {[%clk 00:23:48]} {[%emt
00:00:38]} 33. f5 {[%clk 00:34:33]} {[%emt 00:00:12]} Bf2 {[%clk 00:23:27]}
{[%emt 00:00:29]} 34. g4 {[%clk 00:33:32]} {[%emt 00:01:11]} Be3 {[%clk
00:23:02]} {[%emt 00:00:36]} 35. Kg2 {[%clk 00:33:11]} {[%emt 00:00:32]} Kf8
{[%clk 00:22:13]} {[%emt 00:00:23]} 36. Kf3 {[%clk 00:33:04]} {[%emt 00:00:53]}
Bb6 {[%clk 00:21:51]} {[%emt 00:00:32]} 37. Kf4 {[%clk 00:32:31]} {[%emt
00:00:42]} Ke7 {[%clk 00:21:36]} {[%emt 00:00:26]} 38. h4 {[%emt 00:00:52]} Bd4
{[%emt 00:00:07]} 39. Kf3 {[%emt 00:00:03]} 1/2-1/2

[Event "3. kolo JP družstev 2019/2020"]
[Site "Jesenik, Czech Republic"]
[Date "2019.11.09"]
[Round "1.4"]
[White "Pojmon, Lukas JES_F"]
[Black "Ondracek, Daniel JES_D"]
[Result "1-0"]
[TimeControl "3600+10"]
[WhiteElo "1000"]
[BlackElo "1000"]

1. e4 {[%clk 01:00:13]} {[%emt 00:00:07]} e5 {[%clk 01:00:18]} {[%emt
00:00:02]} 2. Bc4 {[%clk 01:00:02]} {[%emt 00:00:22]} Bb4 {[%clk 01:00:04]}
{[%emt 00:00:18]} 3. Qh5 {[%clk 01:00:03]} {[%emt 00:00:14]} Qe7 {[%clk
00:59:49]} {[%emt 00:00:18]} 4. c3 {[%clk 00:59:55]} {[%emt 00:00:20]} Ba5
{[%clk 00:59:38]} {[%emt 00:00:20]} 5. Nf3 {[%clk 00:59:48]} {[%emt 00:00:17]}
Nf6 {[%clk 00:59:23]} {[%emt 00:00:23]} 6. Qg5 {[%clk 00:59:42]} {[%emt
00:00:18]} Nxe4 {[%clk 00:58:55]} {[%emt 00:00:26]} 7. Qf5 {[%clk 00:59:07]}
{[%emt 00:01:01]} Nd6 {[%clk 00:58:26]} {[%emt 00:00:41]} 8. Qd3 {[%clk
00:58:51]} {[%emt 00:00:19]} a6 {[%clk 00:58:14]} {[%emt 00:00:23]} 9. O-O
{[%clk 00:58:19]} {[%emt 00:00:48]} O-O {[%clk 00:58:06]} {[%emt 00:00:14]} 10.
Qe3 {[%clk 00:57:46]} {[%emt 00:00:33]} b5 {[%clk 00:58:06]} {[%emt 00:00:18]}
11. Bd3 {[%clk 00:57:38]} {[%emt 00:00:23]} b4 {[%clk 00:57:31]} {[%emt
00:00:43]} 12. cxb4 {[%clk 00:57:39]} {[%emt 00:00:07]} Bxb4 {[%clk 00:57:16]}
{[%emt 00:00:16]} 13. Bc2 {[%clk 00:57:38]} {[%emt 00:00:18]} Nc4 {[%clk
00:57:05]} {[%emt 00:00:21]} 14. Qd3 {[%clk 00:57:33]} {[%emt 00:00:17]} Nd6
{[%clk 00:56:22]} {[%emt 00:00:54]} 15. Qxh7# {[%emt 00:03:27]} 1-0

[Event "3. kolo JP družstev 2019/2020"]
[Site "Jesenik, Czech Republic"]
[Date "2019.11.09"]
[Round "1.5"]
[White "Ondrackova, Veronika JES_D"]
[Black "Vanicek, Matyas JES_F"]
[Result "1-0"]
[TimeControl "3600+10"]
[WhiteElo "1000"]
[BlackElo "1000"]

1. e4 {[%emt 00:00:06]} e5 {[%clk 00:59:41]} {[%emt 00:00:03]} 2. Nf3 {[%clk
01:00:26]} {[%emt 00:00:43]} Nc6 {[%clk 00:59:08]} {[%emt 00:00:19]} 3. Bc4
{[%clk 01:00:32]} {[%emt 00:00:27]} Nf6 {[%clk 00:58:40]} {[%emt 00:00:23]} 4.
O-O {[%clk 01:00:39]} {[%emt 00:00:18]} Bc5 {[%clk 00:58:17]} {[%emt 00:00:15]}
5. Nc3 {[%clk 01:00:46]} {[%emt 00:00:21]} O-O {[%clk 00:58:01]} {[%emt
00:00:21]} 6. Re1 {[%clk 01:00:44]} {[%emt 00:00:17]} d6 {[%emt 00:00:33]} 7.
d3 {[%emt 00:00:20]} Bg4 {[%clk 00:56:34]} {[%emt 00:00:16]} 8. Bg5 {[%clk
01:00:49]} {[%emt 00:00:34]} Bxf3 {[%clk 00:55:36]} {[%emt 00:00:23]} 9. Qxf3
{[%clk 01:00:54]} {[%emt 00:00:49]} h6 {[%clk 00:55:04]} {[%emt 00:00:32]} 10.
Bxf6 {[%clk 01:00:47]} {[%emt 00:00:28]} gxf6 {[%clk 00:54:31]} {[%emt
00:00:14]} 11. Qg3+ {[%clk 01:00:01]} {[%emt 00:01:24]} Kh8 {[%clk 00:53:16]}
{[%emt 00:00:15]} 12. Qf3 {[%clk 00:59:57]} {[%emt 00:01:25]} Nb4 {[%clk
00:52:04]} {[%emt 00:00:11]} 13. Rac1 {[%clk 01:00:05]} Rg8 {[%clk 00:50:50]}
{[%emt 00:01:36]} 14. Bxf7 {[%clk 01:00:15]} Rf8 {[%clk 00:48:50]} {[%emt
00:01:18]} 15. Qh5 {[%clk 01:00:17]} {[%emt 00:02:00]} Qe7 {[%clk 00:48:29]}
{[%emt 00:00:08]} 16. Qxh6# {[%clk 01:00:02]} {[%emt 00:00:37]} 1-0

[Event "3. kolo JP družstev 2019/2020"]
[Site "Jesenik, Czech Republic"]
[Date "2019.11.09"]
[Round "1.6"]
[White "Cimburek, Jan RET_B"]
[Black "Gvizdova, Michala JES_E"]
[Result "1-0"]
[TimeControl "3600+10"]
[WhiteElo "1638"]
[BlackElo "1185"]

1. c4 {[%clk 01:00:11]} {[%emt 00:00:09]} e5 {[%clk 00:59:58]} {[%emt
00:00:22]} 2. Nc3 {[%clk 00:59:47]} {[%emt 00:00:34]} Bb4 {[%clk 00:59:37]}
{[%emt 00:00:31]} 3. g3 {[%clk 00:59:02]} {[%emt 00:00:55]} Bxc3 {[%clk
00:59:33]} {[%emt 00:00:14]} 4. dxc3 {[%clk 00:58:32]} {[%emt 00:00:40]} Nf6
{[%clk 00:59:03]} {[%emt 00:00:39]} 5. Bg2 {[%clk 00:58:20]} {[%emt 00:00:21]}
d6 {[%clk 00:57:26]} {[%emt 00:01:49]} 6. Nf3 {[%clk 00:56:33]} {[%emt
00:01:57]} Nc6 {[%clk 00:56:34]} {[%emt 00:01:03]} 7. O-O {[%clk 00:56:12]}
{[%emt 00:00:31]} Be6 {[%clk 00:56:16]} {[%emt 00:00:26]} 8. b3 {[%clk
00:54:59]} {[%emt 00:01:24]} Qd7 {[%clk 00:55:13]} {[%emt 00:01:13]} 9. Bg5
{[%clk 00:54:00]} {[%emt 00:01:09]} Ne4 {[%clk 00:54:37]} {[%emt 00:00:46]} 10.
Qc1 {[%clk 00:47:43]} {[%emt 00:06:27]} h6 {[%clk 00:53:52]} {[%emt 00:00:55]}
11. Be3 {[%clk 00:46:27]} {[%emt 00:01:22]} O-O-O {[%clk 00:53:07]} {[%emt
00:00:59]} 12. Nxe5 {[%clk 00:45:50]} {[%emt 00:00:47]} Nxe5 {[%clk 00:52:25]}
{[%emt 00:00:52]} 13. Bxe4 {[%clk 00:45:53]} {[%emt 00:00:07]} f5 {[%clk
00:51:51]} {[%emt 00:00:44]} 14. Bg2 {[%clk 00:45:06]} {[%emt 00:00:57]} Kb8
{[%clk 00:50:51]} {[%emt 00:01:10]} 15. c5 {[%clk 00:43:40]} {[%emt 00:01:37]}
Rhg8 {[%clk 00:49:59]} {[%emt 00:01:01]} 16. cxd6 {[%clk 00:42:59]} {[%emt
00:00:51]} cxd6 {[%clk 00:49:55]} {[%emt 00:00:14]} 17. c4 {[%clk 00:41:48]}
{[%emt 00:01:21]} g5 {[%clk 00:49:42]} {[%emt 00:00:23]} 18. c5 {[%clk
00:40:55]} {[%emt 00:01:04]} Rc8 {[%clk 00:49:41]} {[%emt 00:00:10]} 19. Qa3
{[%clk 00:40:28]} {[%emt 00:00:38]} f4 {[%clk 00:45:16]} {[%emt 00:04:35]} 20.
Bd4 {[%clk 00:39:14]} {[%emt 00:01:23]} Nc6 {[%clk 00:45:08]} {[%emt 00:00:18]}
21. Bxc6 {[%clk 00:37:44]} {[%emt 00:01:40]} Qxc6 {[%clk 00:45:08]} {[%emt
00:00:10]} 22. cxd6 {[%clk 00:37:25]} {[%emt 00:00:29]} Rcf8 {[%clk 00:44:10]}
{[%emt 00:01:08]} 23. Qxa7+ {[%clk 00:37:15]} {[%emt 00:00:20]} Kc8 {[%clk
00:44:09]} {[%emt 00:00:10]} 24. Rac1 {[%clk 00:37:20]} {[%emt 00:00:06]} Qxc1
{[%clk 00:42:52]} {[%emt 00:01:27]} 25. Rxc1+ {[%clk 00:37:25]} {[%emt
00:00:04]} Kd8 {[%clk 00:42:41]} {[%emt 00:00:22]} 26. Qb8+ {[%clk 00:37:12]}
{[%emt 00:00:24]} Kd7 {[%clk 00:42:39]} {[%emt 00:00:09]} 27. Qc7+ {[%clk
00:37:14]} {[%emt 00:00:11]} Ke8 {[%clk 00:42:41]} {[%emt 00:00:07]} 28. Qe7#
{[%clk 00:37:09]} {[%emt 00:00:05]} Bc8 {[%emt 00:00:11]} 1-0

[Event "3. kolo JP družstev 2019/2020"]
[Site "Jesenik, Czech Republic"]
[Date "2019.11.09"]
[Round "1.7"]
[White "Tschulikova, Dominika JES_E"]
[Black "Cupr, Radomir RET_B"]
[Result "0-1"]
[TimeControl "3600+10"]
[WhiteElo "1094"]
[BlackElo "1556"]

1. e4 {[%clk 01:00:17]} {[%emt 00:00:02]} c5 {[%clk 01:00:09]} {[%emt
00:00:11]} 2. Bc4 {[%clk 01:00:02]} {[%emt 00:00:25]} d6 {[%clk 00:59:35]}
{[%emt 00:00:45]} 3. d3 {[%clk 00:59:33]} {[%emt 00:00:39]} e6 {[%clk
00:58:17]} {[%emt 00:01:28]} 4. Qe2 {[%clk 00:57:38]} {[%emt 00:02:05]} Bd7
{[%clk 00:55:09]} {[%emt 00:03:17]} 5. Nc3 {[%clk 00:55:31]} {[%emt 00:02:17]}
a6 {[%clk 00:54:23]} {[%emt 00:00:56]} 6. a3 {[%clk 00:53:09]} {[%emt
00:02:33]} b5 {[%clk 00:53:14]} {[%emt 00:01:18]} 7. Ba2 {[%clk 00:52:01]}
{[%emt 00:01:19]} Be7 {[%clk 00:52:04]} {[%emt 00:01:20]} 8. Be3 {[%clk
00:49:49]} {[%emt 00:02:21]} Nc6 {[%clk 00:50:25]} {[%emt 00:01:49]} 9. Nf3
{[%clk 00:47:31]} {[%emt 00:02:28]} Bf6 {[%clk 00:49:30]} {[%emt 00:01:05]} 10.
Bd2 {[%clk 00:43:36]} {[%emt 00:04:06]} Nge7 {[%clk 00:47:51]} {[%emt
00:01:48]} 11. O-O {[%clk 00:43:19]} {[%emt 00:00:28]} O-O {[%clk 00:47:16]}
{[%emt 00:00:44]} 12. Nd1 {[%clk 00:41:00]} {[%emt 00:02:30]} Ng6 {[%clk
00:46:29]} {[%emt 00:00:57]} 13. Bc3 {[%clk 00:36:59]} {[%emt 00:04:10]} Bxc3
{[%clk 00:44:36]} {[%emt 00:02:03]} 14. Nxc3 {[%clk 00:36:48]} {[%emt
00:00:21]} Nge5 {[%clk 00:40:31]} {[%emt 00:04:15]} 15. Nxe5 {[%clk 00:34:18]}
{[%emt 00:02:40]} Nxe5 {[%clk 00:39:39]} {[%emt 00:01:02]} 16. f4 {[%clk
00:33:05]} {[%emt 00:01:23]} Nc6 {[%clk 00:38:15]} {[%emt 00:01:34]} 17. Nd1
{[%clk 00:29:07]} {[%emt 00:04:09]} Qb6 {[%clk 00:35:02]} {[%emt 00:03:22]} 18.
c3 {[%clk 00:26:35]} {[%emt 00:02:43]} Rae8 {[%clk 00:32:36]} {[%emt 00:02:35]}
19. Nf2 {[%clk 00:23:30]} {[%emt 00:03:15]} Kh8 {[%clk 00:30:43]} {[%emt
00:02:04]} 20. Nh3 {[%clk 00:22:49]} {[%emt 00:00:51]} c4+ {[%clk 00:28:00]}
{[%emt 00:02:53]} 21. Kh1 {[%clk 00:21:09]} {[%emt 00:01:50]} d5 {[%clk
00:26:33]} {[%emt 00:01:36]} 22. d4 {[%clk 00:19:33]} {[%emt 00:01:46]} f6
{[%clk 00:23:41]} {[%emt 00:03:02]} 23. exd5 {[%clk 00:14:51]} {[%emt
00:04:51]} exd5 {[%clk 00:22:36]} {[%emt 00:01:16]} 24. Qh5 {[%clk 00:14:10]}
{[%emt 00:00:52]} g6 {[%clk 00:18:15]} {[%emt 00:03:29]} 25. Qh6 {[%clk
00:11:55]} {[%emt 00:03:26]} Ne7 {[%clk 00:17:06]} {[%emt 00:01:20]} 26. Rae1
{[%clk 00:09:59]} {[%emt 00:02:06]} Nf5 {[%clk 00:16:37]} {[%emt 00:00:39]} 27.
Qxf8+ {[%clk 00:05:02]} {[%emt 00:05:06]} Rxf8 {[%clk 00:16:31]} {[%emt
00:00:16]} 28. Bb1 {[%clk 00:04:08]} {[%emt 00:01:04]} Qc6 {[%clk 00:14:18]}
{[%emt 00:02:23]} 29. g3 {[%clk 00:03:36]} {[%emt 00:00:43]} Ng7 {[%clk
00:13:08]} {[%emt 00:01:19]} 30. Nf2 {[%clk 00:03:39]} {[%emt 00:00:07]} Re8
{[%clk 00:12:59]} {[%emt 00:00:20]} 31. Nd1 {[%clk 00:02:51]} {[%emt 00:00:58]}
Bf5 {[%clk 00:12:43]} {[%emt 00:00:24]} 32. Ba2 {[%emt 00:01:28]} Bh3 {[%clk
00:11:59]} {[%emt 00:00:52]} 33. Rg1 {[%clk 00:01:35]} {[%emt 00:00:11]} Re4
{[%clk 00:10:35]} {[%emt 00:01:34]} 34. Bb1 {[%clk 00:01:24]} {[%emt 00:00:21]}
Rxe1 {[%clk 00:10:18]} {[%emt 00:00:27]} 35. Rxe1 {[%clk 00:01:28]} {[%emt
00:00:06]} Bf5 {[%clk 00:09:46]} {[%emt 00:00:36]} 36. Ne3 {[%clk 00:01:26]}
{[%emt 00:00:19]} Bxb1 {[%clk 00:09:38]} {[%emt 00:00:17]} 37. Rxb1 {[%clk
00:01:30]} {[%emt 00:00:06]} Nf5 {[%emt 00:01:26]} 38. Re1 {[%clk 00:01:04]}
Nxe3 {[%clk 00:09:00]} {[%emt 00:00:08]} 39. Rxe3 {[%clk 00:01:07]} {[%emt
00:00:08]} Qd7 {[%clk 00:08:52]} {[%emt 00:00:17]} 40. Kg2 {[%clk 00:00:46]}
{[%emt 00:00:30]} Kg7 {[%clk 00:08:54]} {[%emt 00:00:09]} 41. Kf3 {[%clk
00:00:26]} {[%emt 00:00:29]} Kf7 {[%clk 00:08:50]} {[%emt 00:00:15]} 0-1